Cogmind - Beta 13 @@@ ROGUE MODE // 2024.04.28 @ 18:28:30 Player: bradybot Result: Destroyed by B-75 Beast with Magnetic Acceleration Cannon Performance ------------- Evolutions (5) 2500 Regions Visited (8) 1600 Robots Destroyed (93) 465 Value Destroyed (3205) 3205 Prototype IDs (27) 540 Alien Tech Used (0) 0 Bonus (492) 492 TOTAL SCORE: 8802 Bonus ------- Follower Combat Kills 192 Aligned with FarCom 300 Cogmind --------- Core Integrity 0/1000 Matter 18/300 Energy 100/100 System Corruption 21% Temperature Cool (0) Movement Core (150) Ox2 Location -5/Factory Parts ------- > --- POWER (1) -------- (None) > --- PROPULSION (5) --- Cooled Gravmag System > --- UTILITY (8) ------ Advanced Visual Processing Unit Enhanced Optical Array Launcher Guidance Computer Target Analyzer Transmission Jammer Improved Recalibrator > --- WEAPON (3) ------- High-powered Shock Rifle > --- INVENTORY (5) ---- Fusion Compressor Compact Wheel Cesium-ion Thruster Advanced Melee Analysis Suite Improved Component Analysis Suite Peak State ------------ > --- POWER ------------ Light Nuclear Core > --- PROPULSION ------- Cooled Gravmag System Cooled Gravmag System Cooled Gravmag System Cooled Gravmag System Cooled Gravmag System > --- UTILITY ---------- Huge Storage Unit Matter Compressor Advanced Visual Processing Unit Enhanced Optical Array Launcher Guidance Computer Target Analyzer Armor Integrity Analyzer Transmission Jammer > --- WEAPON ----------- Proton Cannon Disruptor Cannon Mass Driver > --- INVENTORY -------- Micro Nuclear Core Fusion Compressor Improved Medium Treads Carbon-fiber Leg Flexi-carbon Leg Wheel Compact Wheel Antigrav System Cooled Gravmag System Cooled Gravmag System Cesium-ion Thruster High-capacity Storage Unit Advanced Weight Redist. System Enhanced Optical Array Advanced Sensor Array Improved Signal Interpreter Melee Analysis Suite Advanced Melee Analysis Suite Improved Reaction Control System Hardened Medium Armor Plating Thermal Shield Improved Component Analysis Suite Improved Component Analysis Suite Chronowheel Proton Cannon [Rating: 95] Favorites ----------- Power Light Ion Engine Engine Light Ion Engine Power Core Micro Nuclear Core Propulsion Aluminum Leg Leg Aluminum Leg Wheel Wheel Hover Unit Cooled Gravmag System Flight Unit Cesium-ion Thruster Utility Targeting Computer Device Transmission Jammer Storage Huge Storage Unit Processor Targeting Computer Protection Improved Medium Armor Plating Weapon Ripper Energy Gun EM Pulse Gun Energy Cannon Proton Cannon Ballistic Gun Heavy Assault Rifle Ballistic Cannon Gauss Cannon Launcher Grenade Launcher Impact Weapon Powered Hammer Slashing Weapon Ripper Special Melee Weapon Datajack Build | -11 -10 -10 -10 -9 -8 -7 -6 -5 ------- Run | Yrd Mat Min Exi Min Mat Fac Fac Fac Slots Evolved 10 | . . . . . 4 2 2 2 Power . | . . . . . . . . . Propulsion 3 | . . . . . 2 . . 1 Utility 6 | . . . . . 2 2 1 1 Weapon 1 | . . . . . . . 1 . Parts Attached 137 | 6 10 4 . 1 40 17 24 35 Power 19 | 1 2 . . 1 5 2 2 6 Engine 8 | 1 2 . . 1 2 1 . 1 Core 11 | . . . . . 3 1 2 5 Reactor . | . . . . . . . . . Propulsion 50 | 2 1 . . . 15 8 10 14 Treads . | . . . . . . . . . Leg 32 | 2 1 . . . 15 8 4 2 Wheel 10 | . . . . . . . 5 5 Hover 7 | . . . . . . . 1 6 Flight 1 | . . . . . . . . 1 Utility 28 | 1 5 . . . 7 6 4 5 Device 6 | . . . . . . 1 1 4 Storage 10 | 1 4 . . . 4 . 1 . Processor 7 | . 1 . . . 2 1 2 1 Hackware . | . . . . . . . . . Protection 5 | . . . . . 1 4 . . Artifact . | . . . . . . . . . Weapon 40 | 2 2 4 . . 13 1 8 10 Energy Gun 4 | 1 . . . . 1 . . 2 Energy Cannon 5 | . . . . . 1 . . 4 Ballistic Gun 12 | 1 1 1 . . 6 . 2 1 Ballistic Cannon 5 | . . . . . . 1 2 2 Launcher 5 | . 1 1 . . . . 3 . Special Weapon . | . . . . . . . . . Impact Weapon 2 | . . . . . . . 1 1 Slashing Weapon 5 | . . 1 . . 4 . . . Piercing Weapon . | . . . . . . . . . Special Melee Weapon 2 | . . 1 . . 1 . . . Unidentified Prototypes 2 | . . . . . 1 . . 1 Corrupted Parts 1 | . . . . . . . . 1 System Corruption 7 | . . . . . . . . 7 Parts Lost 52 | . . . . . 5 5 15 27 Power 5 | . . . . . . 1 . 4 Propulsion 22 | . . . . . 1 2 9 10 Utility 10 | . . . . . 1 1 2 6 Weapon 15 | . . . . . 3 1 4 7 Highest Loss Streak 9 | . . . . . 2 2 5 9 To Critical Strikes . | . . . . . . . . . Average Slot Usage (%) 98 | . 99 100 100 100 98 98 97 89 Engine 8 | . 14 14 14 14 5 4 . 1 Core 1 | . . . . . 3 2 6 2 Leg 26 | . 28 28 28 28 35 29 20 1 Wheel 1 | . . . . . . . 3 9 Device 1 | . . . . . . 2 1 6 Storage 14 | . 14 14 14 14 17 15 13 9 Processor 17 | . 13 14 14 14 15 19 25 26 Protection 2 | . . . . . 1 7 3 . Ballistic Gun 8 | . 14 14 14 14 9 . 1 1 Ballistic Cannon 2 | . . . . . . 5 5 2 Launcher 2 | . 11 1 . . . . 4 . Slashing Weapon 5 | . . 1 14 14 6 7 3 . Special Melee Weapon 1 | . . 10 . . . . . . Naked Turns . | . . . . . . . . . Heaviest Build 117 | 11 49 49 49 49 101 112 115 117 Greatest Support 64 | 20 20 20 20 20 48 50 47 64 Greatest Overweight (x) 34 | . 2 2 2 2 2 3 11 34 Average Overweight (x) 1 | . 1 2 2 2 1 1 2 1 Largest Inventory Capacity 25 | 8 25 20 20 20 25 25 25 25 Average Capacity 22 | 7 19 20 20 20 24 25 25 23 Most Carried 25 | 6 20 20 20 20 25 25 25 25 Average Carried 21 | 3 18 19 19 20 23 24 23 21 Final Capacity 25 | 8 20 20 20 20 25 25 25 5 Final Carried 25 | 6 20 20 20 20 25 25 25 5 Class Distribution -------------------- 71% | Mutant 25% | Scavenger-Mutant Dominant Class ---------------- Mutant | -10/Materials Mutant | -10/Mines Mutant | -10/Exiles Mutant | -9/Mines Mutant | -8/Materials Mutant | -7/Factory Scavenger-Mutant | -6/Factory Mutant | -5/Factory Resources | -11 -10 -10 -10 -9 -8 -7 -6 -5 ----------- Run | Yrd Mat Min Exi Min Mat Fac Fac Fac Matter Collected 2472 | 192 420 124 . 143 500 301 624 168 Remotely 58 | . . . . . . 58 . . Salvage Created 3400 | . 471 53 . 15 989 561 991 320 Parts 201 | . 44 6 . 3 48 31 60 9 Haulers Intercepted . | . . . . . . . . . Recyclers Shooed 1 | . . . . . . . 1 . Parts Field Recycled . | . . . . . . . . . Retrieved Matter . | . . . . . . . . . Parts Self-Destructed . | . . . . . . . . . Prevented . | . . . . . . . . . Kills | -11 -10 -10 -10 -9 -8 -7 -6 -5 ------- Run | Yrd Mat Min Exi Min Mat Fac Fac Fac Combat Hostiles Destroyed 67 | . 12 3 . 1 18 12 15 6 Melee 33 | . . . . . 18 10 5 . Guns 10 | . 3 3 . 1 . . 1 2 Cannons 8 | . . . . . . 2 4 2 AOE 13 | . 9 . . . . . 3 1 Classes Destroyed 11 | . 5 . . . 4 2 . . Worker 7 | . 4 . . . 1 1 1 . Builder 9 | . 1 . . . 2 . 6 . Tunneler 2 | . . . . . 1 . 1 . Recycler 3 | . . . . . . 1 2 . Watcher 5 | . 3 . . . . . 2 . Swarmer 13 | . 3 3 . 1 . 3 3 . Grunt 32 | . 9 . . . 14 4 2 3 Duelist 1 | . . . . . 1 . . . Sentry 5 | . . . . . 2 . 2 1 Hunter 4 | . . . . . 1 . 3 . Programmer 11 | . . . . . . 4 5 2 Thug 1 | . . . . . . 1 . . Best Kill Streak 7 | . 3 3 . 1 5 3 7 2 Combat Bots Only 4 | . 3 3 . 1 4 3 3 2 Max Kills in Single Turn 3 | . 3 1 . 1 1 1 2 1 Gunslinging . | . . . . . . . . . Exploded 3 | . 3 . . . . . 1 1 Melee 1 | . . . . . 1 1 1 . Uniques/NPCs Destroyed . | . . . . . . . . . Combat | -11 -10 -10 -10 -9 -8 -7 -6 -5 -------- Run | Yrd Mat Min Exi Min Mat Fac Fac Fac Hostile Shots Fired 641 | . 20 14 . 11 95 104 170 227 Missed 178 | . 6 1 . 4 24 29 47 67 Damage Taken 8094 | . 194 105 . 60 1187 1171 2009 3368 Core 1745 | . 22 22 . 17 128 104 428 1024 Absorbed by Shields 58 | . . . . . . . . 58 Ignored by Resistances 31 | . . . . . . . . 31 Core Remaining (%) 77 | 100 . . . 75 76 85 49 . Volleys Fired 136 | . 34 5 . 2 13 18 39 25 Largest 2 | . 2 2 . 1 2 1 2 2 Hottest 156 | . 60 46 . 23 85 48 87 156 Shots Fired 187 | . 54 7 . 2 17 18 60 29 Gun 97 | . 43 7 . 2 15 . 13 17 Cannon 70 | . . . . . 2 18 38 12 Launcher 20 | . 11 . . . . . 9 . Special . | . . . . . . . . . Kinetic 150 | . 34 7 . 2 14 18 51 24 Thermal 2 | . . . . . 2 . . . Explosive 15 | . 11 . . . . . 4 . Electromagnetic 20 | . 9 . . . 1 . 5 5 Robot Hit Streak 11 | . 11 5 . . 5 6 11 7 Robot Miss Streak 7 | . 3 1 . 2 5 3 7 2 Penetration Max 1 | . . . . . . . . 1 Secondary Targets 1 | . . 1 . . . . . . Max Gunslinging Chain 1 | . . 1 . . . . . . Shots Hit Robots 221 | . 28 6 . 1 57 41 52 36 Core Hits 124 | . 28 3 . 1 24 14 43 11 Critical Kills 3 | . . . . . . . 2 1 Critical Parts Destroyed 4 | . . . . . . . 3 1 Critical Strikes 18 | . . . . . 5 1 9 3 Destroy 1 | . . . . . . . . 1 Blast 4 | . . . . . . . 3 1 Smash 6 | . . . . . . . 5 1 Sever 7 | . . . . . 5 1 1 . Melee Attacks 199 | . . 1 . 1 82 67 28 20 Impact 41 | . . . . . . . 21 20 Slashing 156 | . . . . 1 81 67 7 . Piercing . | . . . . . . . . . Sneak Attacks 12 | . . 1 . . 5 2 4 . Combat Hostiles . | . . . . . . . . . Follow-up Attacks 2 | . . . . . . . . 2 Damage Inflicted 8668 | . 938 69 . 61 2003 1437 2955 1205 Guns 1150 | . 356 69 . 17 140 . 146 422 Cannons 1152 | . . . . . 23 297 519 313 Explosions 1898 | . 582 . . . . . 1316 . Melee 4468 | . . . . 44 1840 1140 974 470 Ramming . | . . . . . . . . . Kinetic 2185 | . 308 69 . 17 140 297 665 689 Thermal 101 | . 20 . . . 23 . 58 . Explosive 1514 | . 562 . . . . . 952 . Electromagnetic 400 | . 48 . . . . . 306 46 Impact 1282 | . . . . . . . 812 470 Slashing 3186 | . . . . 44 1840 1140 162 . Piercing . | . . . . . . . . . Highest Corruption 21 | . . . . . . 3 6 21 Average Corruption 4 | . . . . . . 2 2 9 Corruption Purged . | . . . . . . . . . Corruption Blocked . | . . . . . . . . . Effects 77 | . . . . . . 16 19 42 Message Errors 19 | . . . . . . 4 6 9 Matter Fused 15 | . . . . . . 3 4 8 Heat Flow Errors 9 | . . . . . . 4 . 5 Energy Discharges 12 | . . . . . . 3 5 4 Parts Rejected 5 | . . . . . . 1 1 3 Parts Fused 1 | . . . . . . . . 1 Data Loss (minor) 8 | . . . . . . . 2 6 Data Loss (major) 3 | . . . . . . 1 . 2 Alerts 1 | . . . . . . . . 1 Misdirections 3 | . . . . . . . . 3 Weapon Failures 1 | . . . . . . . 1 . Overload Shots . | . . . . . . . . . Overflow Damage 704 | . . . . 4 273 73 287 67 Projectiles 24 | . . . . . . . 24 . Explosions 67 | . . . . . . . 67 . Melee 613 | . . . . 4 273 73 196 67 Knockbacks 13 | . . . . . . 4 4 5 Impact 2 | . . . . . . . 1 1 Kinetic 10 | . . . . . . 4 3 3 Secondary 1 | . . . . . . . . 1 Self-Inflicted Damage 131 | . 19 . . . . . 112 . Shots 3 | . 1 . . . . . 2 . Rammed . | . . . . . . . . . Targets Rammed . | . . . . . . . . . Kicked . | . . . . . . . . . Crushed . | . . . . . . . . . Highest Temperature 220 | . 26 . . . 24 220 8 207 Average Temperature 49 | . 10 . . . 8 69 6 72 Received Heat Transfer 1743 | . 102 . . . 621 324 90 606 Siege Activations . | . . . . . . . . . Robots Corrupted . | . . . . . . . . . Combat Hostiles . | . . . . . . . . . Parts Fried 4 | . . . . . . . 4 . Impact Corruptions 13 | . . . . . . . 9 4 Robots Melted . | . . . . . . . . . Combat Hostiles . | . . . . . . . . . Parts Melted . | . . . . . . . . . Heat Transferred 187 | . 50 . . . 37 . 100 . Parts Sabotaged . | . . . . . . . . . Parts Stolen . | . . . . . . . . . Parts Stripped . | . . . . . . . . . Power Chain Reactions 4 | . 1 . . . . . 3 . Alert | -11 -10 -10 -10 -9 -8 -7 -6 -5 ------- Run | Yrd Mat Min Exi Min Mat Fac Fac Fac Peak Influence 363 | . 208 110 . 104 200 238 363 198 Initial 161 | . . 40 . . 40 48 99 161 Average 64 | . 68 22 . 2 84 83 100 73 Maximum Alert Level 1 | . 1 . . . 1 1 1 . Low Security (%) 94 | 100 99 100 . 100 99 84 85 100 Level 1 5 | . . . . . . 15 14 . Level 2 . | . . . . . . . . . Level 3 . | . . . . . . . . . Level 4 . | . . . . . . . . . Level 5 . | . . . . . . . . . High Security . | . . . . . . . . . Max Security . | . . . . . . . . . Squads Dispatched 22 | . 3 . . . 2 8 7 2 Investigation 6 | . 2 . . . . 2 1 1 Extermination 9 | . . . . . . 4 4 1 Reinforcement 7 | . 1 . . . 2 2 2 . Assault . | . . . . . . . . . Garrison . | . . . . . . . . . Intercept . | . . . . . . . . . Searches Triggered . | . . . . . . . . . Construction Impeded 1 | . . . . . . . 1 . Haulers Reinforced 1 | . . . . . . . 1 . Active Scanning Responses . | . . . . . . . . . Cargo Convoy Interrupts . | . . . . . . . . . Stealth | -11 -10 -10 -10 -9 -8 -7 -6 -5 --------- Run | Yrd Mat Min Exi Min Mat Fac Fac Fac Distress Signals 6 | . . . . . 4 . 1 1 Communications Jammed 5 | . . . . . . . 5 . Distress Signals 5 | . . . . . . . 5 . Times Spotted 112 | . 18 6 . 4 28 24 22 10 Peak Tracking Total 6 | . 4 3 . 3 6 3 5 3 Tactical Retreats 6 | . . . . . . 3 1 2 Traps | -11 -10 -10 -10 -9 -8 -7 -6 -5 ------- Run | Yrd Mat Min Exi Min Mat Fac Fac Fac Traps Triggered 4 | . 1 . . . . 1 1 1 Indirectly . | . . . . . . . . . Trap Hack Attempts . | . . . . . . . . . Triggered . | . . . . . . . . . Disarmed . | . . . . . . . . . Reprogrammed . | . . . . . . . . . Reused . | . . . . . . . . . Traps Extracted . | . . . . . . . . . Installed . | . . . . . . . . . Triggered 2 | . . . . . . . . 2 Machines | -11 -10 -10 -10 -9 -8 -7 -6 -5 ---------- Run | Yrd Mat Min Exi Min Mat Fac Fac Fac Machines Disabled 6 | . . . . . . 1 4 1 Max in Single Turn 2 | . . . . . . 1 2 1 Machines Repaired . | . . . . . . . . . Machines Dismantled . | . . . . . . . . . Machines Sabotaged . | . . . . . . . . . Overloaded Fab Kills . | . . . . . . . . . Hacking | -11 -10 -10 -10 -9 -8 -7 -6 -5 --------- Run | Yrd Mat Min Exi Min Mat Fac Fac Fac Machines Accessed 29 | . 7 . 5 . 1 5 6 5 Terminals 19 | . 6 . . . 1 4 3 5 Fabricators 2 | . . . . . . 1 1 . Repair Stations . | . . . . . . . . . Recycling Units 1 | . 1 . . . . . . . Scanalyzers 1 | . . . . . . . 1 . Garrison Access 1 | . . . . . . . 1 . Total Hacks 113 | . 20 . 50 . 1 13 14 15 Successful 81 | . 9 . 50 . 1 7 5 9 Failed 31 | . 10 . . . . 6 9 6 Catastrophic 3 | . 1 . . . . . . 2 Database Lockouts 1 | . 1 . . . . . . . Manual 5 | . . . 5 . . . . . Terminals 55 | . 19 . . . 1 12 8 15 Fabricators 2 | . . . . . . 1 1 . Repair Stations . | . . . . . . . . . Recycling Units 1 | . 1 . . . . . . . Scanalyzers 1 | . . . . . . . 1 . Garrison Access 4 | . . . . . . . 4 . Terminal Hacks 79 | . 8 . 50 . 1 7 4 9 Record 62 | . 3 . 49 . 1 3 2 4 Prototype ID Bank 1 | . . . . . . 1 . . Open DSF 3 | . . . . . . 1 2 . Emergency Access Points 2 | . 1 . . . . . . 1 Alert Level 5 | . 1 . . . . 1 . 3 Locate Traps 2 | . 1 . . . . . . 1 Maintenance Status 1 | . 1 . . . . . . . Hauler Manifests 1 | . 1 . . . . . . . Zone Layout 1 | . . . . . . 1 . . Derelict Proto ID Bank 1 | . . . 1 . . . . . Fabricator Hacks 1 | . . . . . . . 1 . Network Status 1 | . . . . . . . 1 . Repair Station Hacks . | . . . . . . . . . Recycling Unit Hacks 1 | . 1 . . . . . . . Report Inventory 1 | . 1 . . . . . . . Scanalyzer . | . . . . . . . . . Garrison Access Hacks . | . . . . . . . . . Unauthorized Hacks . | . . . . . . . . . Terminals . | . . . . . . . . . Fabricators . | . . . . . . . . . Repair Stations . | . . . . . . . . . Recycling Units . | . . . . . . . . . Scanalyzers . | . . . . . . . . . Garrison Access . | . . . . . . . . . Data Cores Recovered . | . . . . . . . . . Used . | . . . . . . . . . Hacking Detections 19 | . 5 . . . 1 5 4 4 Full Trace Events 5 | . 1 . . . . 2 1 1 Feedback Events 1 | . . . . . . . . 1 Corruption 1 | . . . . . . . . 1 Feedback Blocked . | . . . . . . . . . Robot Schematics Acquired . | . . . . . . . . . Robots Built . | . . . . . . . . . Authchips . | . . . . . . . . . Time . | . . . . . . . . . Total Robot Build Rating . | . . . . . . . . . Part Schematics Acquired . | . . . . . . . . . Parts Built . | . . . . . . . . . Authchips . | . . . . . . . . . Time . | . . . . . . . . . Total Part Build Rating . | . . . . . . . . . Parts Repaired . | . . . . . . . . . Time . | . . . . . . . . . Parts Recycled . | . . . . . . . . . Recycled Matter . | . . . . . . . . . Retrieved Matter . | . . . . . . . . . Retrieved Components . | . . . . . . . . . Parts Scanalyzed . | . . . . . . . . . Part Schematics Acquired . | . . . . . . . . . Parts Damaged . | . . . . . . . . . Bothacking | -11 -10 -10 -10 -9 -8 -7 -6 -5 ------------ Run | Yrd Mat Min Exi Min Mat Fac Fac Fac Used RIF Installer . | . . . . . . . . . Robots Hacked 1 | . . . . . 1 . . . Non-combat 1 | . . . . . 1 . . . Combat . | . . . . . . . . . Robot Hacks Applied 1 | . . . . . 1 . . . parse_system 1 | . . . . . 1 . . . Relay Couplers Released . | . . . . . . . . . Fabnet Peak Effective % . | . . . . . . . . . Robots Rewired . | . . . . . . . . . Allies Hacked . | . . . . . . . . . Hacks Repelled . | . . . . . . . . . Allies | -11 -10 -10 -10 -9 -8 -7 -6 -5 -------- Run | Yrd Mat Min Exi Min Mat Fac Fac Fac Total Allies 6 | . . 3 . . . 3 . . Largest Group 3 | . . 3 3 3 3 3 . . Highest-Rated Group 93 | . . 40 40 40 40 93 . . Highest-Rated Ally 31 | . . 16 16 16 16 31 . . Total Orders . | . . . . . . . . . Ally Attacks 53 | . . 11 . 5 7 30 . . Total Damage 717 | . . 119 . 57 71 470 . . Kills 11 | . . 3 . 3 . 5 . . Allies Corrupted . | . . . . . . . . . Allies Melted . | . . . . . . . . . Intel | -11 -10 -10 -10 -9 -8 -7 -6 -5 ------- Run | Yrd Mat Min Exi Min Mat Fac Fac Fac Robot Analysis Total . | . . . . . . . . . Derelict Logs Recovered 3 | . . 1 . 2 . . . . Drone Launches . | . . . . . . . . . Drone Recoveries . | . . . . . . . . . Exploration | -11 -10 -10 -10 -9 -8 -7 -6 -5 ------------- Run | Yrd Mat Min Exi Min Mat Fac Fac Fac Turns Passed 14475 | 94 1929 2170 1720 1177 1760 2912 1672 1041 Spaces Moved 5505 | 68 733 805 654 437 551 1003 576 678 Core 65 | 3 . . . . . . . 62 Treads . | . . . . . . . . . Legs 4659 | 65 733 805 654 437 551 1003 390 21 Wheels 477 | . . . . . . . 183 294 Hover 304 | . . . . . . . 3 301 Flight . | . . . . . . . . . Fastest Speed 50 | 50 120 260 260 260 190 187 116 50 Average Speed 233 | 116 245 260 260 260 239 260 225 121 Slowest Speed 1750 | 120 260 260 260 260 260 330 730 1750 Overloaded Moves 45 | . . . . . . . . 45 Propulsion Burnouts . | . . . . . . . . . Robots Hopped . | . . . . . . . . . Cave-ins Triggered . | . . . . . . . . . Exploration Rate (%) 51 | 5 94 100 94 77 32 24 20 18 Regions Visited 8 Branch Regions 3 Pre-discovered Areas 2 | . . . 1 1 . . . . Known Exits Taken . | . . . . . . . . . Unknown Exits Taken 8 | 1 1 1 1 1 1 1 1 . Scrap Searched 4 | . . 2 . 2 . . . . Spaces Dug 28 | . . . . . 14 13 1 . Terrain Destroyed 163 | . 74 . . . 14 14 59 2 Melee 27 | . . . . . 14 13 . . Projectile 9 | . . . . . . 1 6 2 AOE 127 | . 74 . . . . . 53 . Terrain Rammed . | . . . . . . . . . Walls Destroyed . | . . . . . . . . . Machines Disabled . | . . . . . . . . . Actions | -11 -10 -10 -10 -9 -8 -7 -6 -5 --------- Run | Yrd Mat Min Exi Min Mat Fac Fac Fac Total 6645 | 79 822 874 675 476 856 1195 838 830 Wait 493 | . 4 58 20 35 135 46 149 46 Move 5497 | 67 732 804 653 436 550 1002 575 678 Hop . | . . . . . . . . . Pick Up 96 | 6 25 1 1 . 14 21 14 14 Fast Attach 29 | 6 2 . . . 5 2 5 9 Attach 40 | . . . . . 6 5 14 15 Detach 1 | . 1 . . . . . . . Swap 69 | . 8 4 . 1 30 10 5 11 Drop 74 | . 16 1 1 1 21 24 4 6 Fire 136 | . 34 5 . 2 13 18 39 25 Melee 197 | . . 1 . 1 82 67 28 18 Ram . | . . . . . . . . . Kick . | . . . . . . . . . Crush . | . . . . . . . . . Escape Stasis 12 | . . . . . . . 5 7 Rewire 1 | . . . . . . . . 1 Trap . | . . . . . . . . . Miscellaneous . | . . . . . . . . . Route ------- -11/Scrapyard -10/Materials (discovered 5 exits: [*Mat x3] / [*Min x2]) -10/Mines (discovered 4 exits: [*Mat x2] / *Exi / [*Sub]) -10/Exiles (discovered 2 exits: [*Min x2]) -9/Mines (discovered 2 exits: *Mat x2) -8/Materials -7/Factory (discovered 2 exits: *Fac / [*Low]) -6/Factory (discovered 2 exits: *Fac / [*Low]) -5/Factory (discovered 1 exit: [*Upp]) History --------- Turn | Location | Event 4 | -11/Scrapyard | Discovered new exit (range 15) 95 | -11/Scrapyard | Entered Materials 303 | -10/Materials | Build established: Mutant 530 | -10/Materials | Discovered new exit (range 16) 912 | -10/Materials | Discovered new exit (range 16) 1347 | -10/Materials | Discovered new exit (range 16) 1387 | -10/Materials | Central database locked down 1655 | -10/Materials | Discovered new exit (range 16) 1883 | -10/Materials | Discovered new exit (range 4) 2024 | -10/Materials | Entered Mines 2073 | -10/Mines | Discovered new exit (range 16) 2094 | -10/Mines | Deemed a non-threat by the Exiles lab entrance 2094 | -10/Mines | Discovered new exit (range 5) 2198 | -10/Mines | Discovered new exit (range 6) 2319 | -10/Mines | Assisted by bots powering up and referring to "LRC-V3" 2924 | -10/Mines | Discovered new exit (range 10) 3995 | -10/Mines | A weapon hastily lodged in a ceiling crevice suddenly fell to the ground 4194 | -10/Mines | Entered Exiles 4194 | -10/Exiles | Accompanied by 3 allies 4265 | -10/Exiles | Met 8R-AWN 4283 | -10/Exiles | Discovered new exit (range 14) 4400 | -10/Exiles | Met EX-HEX 4513 | -10/Exiles | Met EX-DEC 4590 | -10/Exiles | Visited The Gauntlet 5236 | -10/Exiles | Learned location of Zion (-7) 5390 | -10/Exiles | Met EX-BIN 5439 | -10/Exiles | Aligned with FarCom system 5442 | -10/Exiles | Given EX-Vault access code 5561 | -10/Exiles | Opened EX-Vault 5577 | -10/Exiles | Found Prototype Device 5615 | -10/Exiles | Identified Chronowheel 5662 | -10/Exiles | Warned to stay clear of 0b10 Research branches 5883 | -10/Exiles | Discovered new exit (range 14) 5914 | -10/Exiles | Left Exiles lab with Chronowheel 5914 | -10/Exiles | Entered Mines 5914 | -9/Mines | Accompanied by 3 allies 5920 | -9/Mines | Met a Derelict bent on vengeance 6395 | -9/Mines | Learned location of Storage (-9) 6416 | -9/Mines | Discovered new exit (range 11) 7054 | -9/Mines | Discovered new exit (range 10) 7091 | -9/Mines | Entered Materials 7091 | -8/Materials | Accompanied by 3 allies 7091 | -8/Materials | Evolved 4 slots: Propulsion x2, Utility x2 7247 | -8/Materials | Lost 3 allies 7490 | -8/Materials | Build established: Scavenger-Mutant 8841 | -8/Materials | Discovered new exit (range 4) 8851 | -8/Materials | Entered Factory 8851 | -7/Factory | Evolved 2 slots: Utility x2 8915 | -7/Factory | Build established: Mutant 9038 | -7/Factory | Allied Derelicts emerged from ambush trap array 9164 | -7/Factory | Discovered new exit (range 19) 9772 | -7/Factory | Build established: Scavenger-Mutant 9850 | -7/Factory | P-60 Hacker assimilated allied G0-220(g) 10528 | -7/Factory | Discovered new exit (range 19) 10596 | -7/Factory | Build established: Mutant 11652 | -7/Factory | Build established: Scavenger-Mutant 11763 | -7/Factory | Entered another Factory area 11763 | -6/Factory | Evolved 2 slots: Utility x1, Weapon x1 12713 | -6/Factory | Lost 4 parts (2n1u1w) 13000 | -6/Factory | Lost 3 parts (1n1u1w) 13065 | -6/Factory | Lost 5 parts (3n2w) 13316 | -6/Factory | Discovered new exit (range 21) 13368 | -6/Factory | Core integrity fell below 50% 13435 | -6/Factory | Discovered new exit (range 17) 13435 | -6/Factory | Entered another Factory area 13435 | -5/Factory | Evolved 2 slots: Propulsion x1, Utility x1 13793 | -5/Factory | Lost 9 parts (1p5n2u1w) 14087 | -5/Factory | Discovered new exit (range 5) 14263 | -5/Factory | Spotted B-75 Beast 14309 | -5/Factory | System corruption reached 10% 14380 | -5/Factory | Lost 7 parts (2p1n1u3w) 14389 | -5/Factory | Core integrity fell below 50% 14426 | -5/Factory | Core integrity fell below 20% 14454 | -5/Factory | Lost 9 parts (1p4n3u1w) 14476 | -5/Factory | Destroyed by B-75 Beast with Magnetic Acceleration Cannon Last Messages --------------- 14443_ System corrupted: Heat flow error (+239). 14445_ Slug penetrates P-70 Sage. [Achievement: Please Form A Line] 14449_ Slug penetrates Wall. 14451_ Destroyed Lgt. Ion Engine. 14453_ Slug penetrates P-70 Sage. 14453_ P-70 Sage suffers critical hit (Destroy). 14453_ P-70 Sage destroyed. 14455_ Slug penetrates P-70 Sage. 14459_ Destroyed Hpw. Shock Rifle. 14460_ System corrupted: Component data lost. 14461_ Slug penetrates P-70 Sage. 14464_ W-25 Informer sends out distress signal. 14465_ Destroyed Antigrav System. 14467_ Slug penetrates P-70 Sage. 14467_ P-70 Sage destroyed. 14470_ KE Penetrator destroyed. 14471_ Acquired Hpw. Shock Rifle. 14475_ System corrupted: Substantial component data lost. [Achievement: 5k Club] Map ----- +----------------------------------------------------+ | ?????????????????????????????????????????????????? | | ?????????????????????????????????????????????????? | | ?????????????????????????????????????????????????? | | ?????????????????????????????????????????????????? | | ?????????????????????????????????????????????????? | | ?????????????????????????????????????????????????? | | ?????????????????????????????????????????????????? | | ?????????????????????????????????????????????????? | | ?????????????????????????????????????????????????? | | ?????????????????????????????????????????????????? | | ?????????????????????????????????????????????????? | | ?????????????????????????????????????????????????? | | ?????????????????????????????????????????????????? | | ???????????????????#?##########??????????????????? | | ???????????????????# #????????????????? | | ???????????????????# """ """ #????????????????? | | ???????????????????# "F" """ #????????????????? | | ###########????????# " """ #????????????????? | | #????????# """ #????????????????? | | ######### #????????# """ """ #????????????????? | | ????????# #????????# """ #????????????????? | | ????????# #????##### """ #????????????????? | | ????????# #????#BB## ###??????????????? | | ######### ######BB;; % ; #??????????????? | | # ; #??###########???? | | # # @ [ #??# #???? | | # " ###;;;!+######### #???? | | # " w!% # """ """ #???? | | # " # """ """ #???? | | + " + """ """ #???? | | # " # #???? | | # " !! # #???? | | # " ![ ########## # #???? | | # " k #????????# #####/######### | | # " #????????# ^ | | # ^% #????????# | | ###/##### """ #????????# | | ??+ """ ########## | | ???# " # # ^ | | ??# "F" # # ############### | | ?# """ # =#! # # | | "" """"?# # !=#!! g # # | | "" """" # # !!+!= + # """" | | "" """" # #####"# !!!#!= # # """" | | "" """" # #?????# =#! # # """" | | "" """" # #?????# # # # """" | | "" """" # #?????# # # # | | # ################ # # | | # # # | | ######### ########## | +----------------------------------------------------+ Best States ------------- Heat Dissipation 40 Energy Generation 25 Energy Capacity 290 Matter Stores 500 Matter Capacity 550 Sight Range 22 Terrain Scan Density 10 Jamming Range 12 Armor Coverage 225 Resistance: KI 20 Evasion (%) 55 Targeting Accuracy 6 Launcher Accuracy 20 Target Analysis 5 Armor Integrity Analysis 30 Item Schematics ----------------- None Robot Schematics ------------------ None Fabricated ------------ Nothing Alien Tech Used ----------------- None Achievements -------------- 5k Club Made in Tau Ceti IV Part-time Excavator Please Form A Line Serviceable Loadout Shopping List System Compromised Tourist Whoosh! Challenges ------------ None Game ------ Seed HybridDimensionalPlating Manual? 0 Play Time 02:11:55 Cumulative 5.1 hours Start 2024.04.14 @ 12:35:44 End 2024.04.28 @ 18:28:30 Sessions 5 Manual Loads 0 Difficulty Rogue Special Mode None Game No. 5 Rogue 5 Adventurer 0 Explorer 0 Win Type - Total 0 Types 0/0/0/0/0/0/0/0/0 Lore% 12 Gallery% 10 Achievement% 9 Wizard Run 0 Options --------- Layout 0 ASCII 0 Keyboard 0 Movement Mouse Keybinds 0 Fullscreen 2 Font 24/Smallcaps Map View 76x50 Zoom Use 0% Tactical HUD 1 Map Filters NONE Filters NONE Steam 1 RUN: ac804fb5-cb93-4042-b05e-d6fb892f1dd8